Cogmind - Beta 14 @@@ ROGUE MODE // 2024.11.03 @ 00:45:31 Player: BigChungusGaming Result: Destroyed by exploding Nuclear Reactor Performance ------------- Evolutions (2) 1000 Regions Visited (5) 1000 Robots Destroyed (15) 75 Value Destroyed (469) 469 Prototype IDs (2) 40 Alien Tech Used (0) 0 Bonus (370) 370 TOTAL SCORE: 2954 Bonus ------- Follower Combat Kills 70 Aligned with FarCom 300 Cogmind --------- Core Integrity 0/550 Matter 300/300 Energy 100/100 System Corruption 4% Temperature Cool (0) Movement Core (50) Location -8/Materials Parts ------- > --- POWER (1) -------- (None) > --- PROPULSION (4) --- (None) > --- UTILITY (4) ------ (None) > --- WEAPON (2) ------- (None) > --- INVENTORY (5) ---- EM Pulse Cannon Peak State ------------ > --- POWER ------------ Improved Ion Engine > --- PROPULSION ------- Aluminum Leg Aluminum Leg Aluminum Leg Carbon-fiber Leg > --- UTILITY ---------- Heat Sink Improved Heat Sink Small Storage Unit Light Armor Plating > --- WEAPON ----------- Field Lobotomy Kit Makeshift Axe > --- INVENTORY -------- EM Pulse Cannon Great Maul [Rating: 28] Favorites ----------- Power Ion Engine Engine Ion Engine Power Core Light Nuclear Core Propulsion Light Treads Treads Light Treads Leg Aluminum Leg Utility Small Storage Unit Device Sensor Array Storage Small Storage Unit Processor Improved Targeting Computer Protection Light Armor Plating Weapon Shotgun Energy Gun Medium Laser Ballistic Gun Shotgun Ballistic Cannon Light Cannon Special Weapon Field Lobotomy Kit Impact Weapon Great Maul Slashing Weapon Makeshift Axe Build | -11 -10 -10 -10 -9 -8 ------- Run | Yrd Mat Min Exi Min Mat Slots Evolved 4 | . . . . . 4 Power . | . . . . . . Propulsion 2 | . . . . . 2 Utility 2 | . . . . . 2 Weapon . | . . . . . . Parts Attached 33 | 6 7 5 3 . 12 Power 6 | 1 . 1 . . 4 Engine 3 | 1 . 1 . . 1 Core 3 | . . . . . 3 Reactor . | . . . . . . Propulsion 8 | 2 1 2 . . 3 Treads 3 | 2 1 . . . . Leg 5 | . . 2 . . 3 Wheel . | . . . . . . Hover . | . . . . . . Flight . | . . . . . . Utility 10 | 1 2 1 2 . 4 Device 5 | . 1 . 1 . 3 Storage 1 | 1 . . . . . Processor 1 | . 1 . . . . Hackware . | . . . . . . Protection 3 | . . 1 1 . 1 Artifact . | . . . . . . Weapon 9 | 2 4 1 1 . 1 Energy Gun 3 | 2 1 . . . . Energy Cannon . | . . . . . . Ballistic Gun 2 | . 2 . . . . Ballistic Cannon 1 | . 1 . . . . Launcher . | . . . . . . Special Weapon 1 | . . . 1 . . Impact Weapon 1 | . . . . . 1 Slashing Weapon 1 | . . 1 . . . Piercing Weapon . | . . . . . . Special Melee Weapon . | . . . . . . Unidentified Prototypes 2 | . . . 2 . . Parts Lost 18 | . . 3 . . 15 Power 3 | . . 1 . . 2 Propulsion 6 | . . 1 . . 5 Utility 5 | . . . . . 5 Weapon 4 | . . 1 . . 3 Highest Loss Streak 11 | . . 3 . . 11 To Critical Strikes . | . . . . . . Average Slot Usage (%) 89 | . 97 96 79 85 72 Engine 8 | . 14 12 . . 1 Treads 17 | . 28 25 . . . Leg 10 | . . 2 28 28 27 Device 4 | . 7 . . . 12 Storage 13 | . 14 14 14 14 8 Processor 4 | . 3 13 . . . Protection 3 | . . 1 13 14 4 Energy Gun 5 | . 13 . . . . Ballistic Gun 9 | . 8 24 . . . Ballistic Cannon 2 | . 5 . . . . Special Weapon 3 | . . . 8 14 7 Slashing Weapon 4 | . . 1 14 14 8 Peak Build Rating 28 | 6 11 14 18 18 28 Average Rating 12 | 4 8 11 14 18 21 On Entrance 10 | . 6 11 9 18 18 Naked Turns 16 | . . . . . 16 Heaviest Build 28 | 14 17 18 19 19 28 Greatest Support 45 | 40 40 40 20 20 45 Greatest Overweight (x) . | . . . . . . Average Overweight (x) . | . . . . . . Largest Inventory Capacity 8 | 8 8 8 8 8 8 Average Capacity 7 | 6 8 8 8 8 7 Most Carried 8 | 6 8 8 8 1 2 Average Carried 5 | 3 7 7 2 1 1 Final Capacity 8 | 8 8 8 8 8 5 Final Carried 8 | 6 8 6 1 1 1 Class Distribution -------------------- 97% | Mutant Dominant Class ---------------- Mutant | -10/Materials Mutant | -10/Mines Mutant | -10/Exiles Mutant | -9/Mines Mutant | -8/Materials Resources | -11 -10 -10 -10 -9 -8 ----------- Run | Yrd Mat Min Exi Min Mat Matter Collected 523 | 164 144 85 . 30 100 Remotely . | . . . . . . Salvage Created 542 | . 114 . . . 428 Parts 23 | . 2 . . . 21 Haulers Intercepted . | . . . . . . Recyclers Shooed 3 | . 2 . . . 1 Parts Field Recycled . | . . . . . . Retrieved Matter . | . . . . . . Parts Self-Destructed . | . . . . . . Prevented . | . . . . . . Kills | -11 -10 -10 -10 -9 -8 ------- Run | Yrd Mat Min Exi Min Mat Combat Hostiles Destroyed 12 | . 2 . . . 10 Melee 10 | . . . . . 10 Guns 1 | . 1 . . . . Classes Destroyed 5 | . 2 . . . 3 Worker 1 | . 1 . . . . Builder 1 | . . . . . 1 Mechanic 1 | . . . . . 1 Swarmer 3 | . . . . . 3 Grunt 9 | . 2 . . . 7 Best Kill Streak 4 | . 2 . . . 4 Combat Bots Only 3 | . 2 . . . 3 Max Kills in Single Turn 1 | . 1 . . . 1 Gunslinging . | . . . . . . Exploded . | . . . . . . Melee 1 | . . . . . 1 Uniques/NPCs Destroyed . | . . . . . . Combat | -11 -10 -10 -10 -9 -8 -------- Run | Yrd Mat Min Exi Min Mat Hostile Shots Fired 200 | . 16 17 . . 167 Missed 56 | . 6 1 . . 49 Damage Taken 2573 | . 116 671 . . 1786 Core 795 | . 22 194 . . 579 Absorbed by Shields . | . . . . . . Core Remaining (%) 56 | 100 . . . 13 . Volleys Fired 20 | . 13 3 . 1 3 Largest 2 | . 2 2 . 1 1 Hottest 115 | . 115 46 . . . Shots Fired 35 | . 26 5 . 1 3 Gun 29 | . 24 5 . . . Cannon 2 | . 2 . . . . Launcher . | . . . . . . Special 4 | . . . . 1 3 Kinetic 7 | . 2 5 . . . Thermal 24 | . 24 . . . . Explosive . | . . . . . . Electromagnetic . | . . . . . . Robot Hit Streak 9 | . 9 3 . . 2 Robot Miss Streak 5 | . 3 5 . . 1 Penetration Max . | . . . . . . Secondary Targets . | . . . . . . Shots Hit Robots 52 | . 15 5 . . 32 Core Hits 21 | . 5 2 . . 14 Critical Kills . | . . . . . . Critical Parts Destroyed . | . . . . . . Critical Strikes 3 | . 2 . . . 1 Burn 2 | . 2 . . . . Sever 1 | . . . . . 1 Melee Attacks 45 | . . 6 . . 39 Impact 4 | . . . . . 4 Slashing 41 | . . 6 . . 35 Piercing . | . . . . . . Sneak Attacks 2 | . . . . . 2 Combat Hostiles . | . . . . . . Follow-up Attacks . | . . . . . . Damage Inflicted 1467 | . 183 119 . . 1165 Guns 236 | . 183 53 . . . Cannons . | . . . . . . Explosions . | . . . . . . Melee 1219 | . . 66 . . 1153 Ramming 12 | . . . . . 12 Kinetic 53 | . . 53 . . . Thermal 183 | . 183 . . . . Explosive . | . . . . . . Electromagnetic . | . . . . . . Impact 115 | . . . . . 115 Slashing 1104 | . . 66 . . 1038 Piercing . | . . . . . . Highest Corruption 4 | . . . . . 4 Average Corruption 2 | . . . . . 2 Corruption Purged . | . . . . . . Corruption Blocked . | . . . . . . Overload Shots . | . . . . . . Overflow Damage 102 | . . 4 . . 98 Projectiles . | . . . . . . Explosions . | . . . . . . Melee 102 | . . 4 . . 98 Knockbacks . | . . . . . . Impact . | . . . . . . Kinetic . | . . . . . . Secondary . | . . . . . . Self-Inflicted Damage 5 | . . . . . 5 Shots . | . . . . . . Rammed 3 | . . . . . 3 Targets Rammed 3 | . . . . . 3 Kicked . | . . . . . . Crushed . | . . . . . . Highest Temperature 316 | . 316 . . . 6 Average Temperature 116 | . 118 . . . 6 Received Heat Transfer 849 | . 66 . . . 783 Effects 1 | . 1 . . . . Energy Bleed 1 | . 1 . . . . Siege Activations . | . . . . . . Robots Corrupted . | . . . . . . Combat Hostiles . | . . . . . . Parts Fried . | . . . . . . Impact Corruptions 1 | . . . . . 1 Robots Melted 1 | . 1 . . . . Combat Hostiles 1 | . 1 . . . . Parts Melted 3 | . 3 . . . . Heat Transferred 666 | . 666 . . . . Parts Sabotaged . | . . . . . . Parts Stolen . | . . . . . . Parts Stripped . | . . . . . . Power Chain Reactions . | . . . . . . Alert | -11 -10 -10 -10 -9 -8 ------- Run | Yrd Mat Min Exi Min Mat Peak Influence 275 | . 55 15 . . 275 Initial . | . . . . . . Average 34 | . 29 6 . . 113 Maximum Alert Level 1 | . . . . . 1 Low Security (%) 96 | 100 100 100 . 100 79 Level 1 3 | . . . . . 20 Level 2 . | . . . . . . Level 3 . | . . . . . . Level 4 . | . . . . . . Level 5 . | . . . . . . High Security . | . . . . . . Max Security . | . . . . . . Squads Dispatched 2 | . . . . . 2 Investigation . | . . . . . . Extermination . | . . . . . . Reinforcement 2 | . . . . . 2 Assault . | . . . . . . Garrison . | . . . . . . Intercept . | . . . . . . Searches Triggered . | . . . . . . Construction Impeded . | . . . . . . Haulers Reinforced . | . . . . . . Active Scanning Responses . | . . . . . . Cargo Convoy Interrupts . | . . . . . . Stealth | -11 -10 -10 -10 -9 -8 --------- Run | Yrd Mat Min Exi Min Mat Distress Signals 9 | . 2 . . . 7 Communications Jammed . | . . . . . . Distress Signals . | . . . . . . Times Spotted 40 | . 9 4 . . 27 Peak Tracking Total 8 | . 3 2 . . 8 Tactical Retreats 3 | . . . . . 3 Traps | -11 -10 -10 -10 -9 -8 ------- Run | Yrd Mat Min Exi Min Mat Traps Triggered 2 | . . . . . 2 Indirectly . | . . . . . . Trap Hack Attempts . | . . . . . . Triggered . | . . . . . . Disarmed . | . . . . . . Reprogrammed . | . . . . . . Reused . | . . . . . . Traps Extracted . | . . . . . . Installed . | . . . . . . Triggered . | . . . . . . Machines | -11 -10 -10 -10 -9 -8 ---------- Run | Yrd Mat Min Exi Min Mat Machines Disabled 1 | . 1 . . . . Max in Single Turn 1 | . 1 . . . . Machines Repaired . | . . . . . . Machines Dismantled . | . . . . . . Machines Sabotaged . | . . . . . . Overloaded Fab Kills . | . . . . . . Hacking | -11 -10 -10 -10 -9 -8 --------- Run | Yrd Mat Min Exi Min Mat Machines Accessed 1 | . . . 1 . . Terminals . | . . . . . . Fabricators . | . . . . . . Repair Stations . | . . . . . . Recycling Units . | . . . . . . Scanalyzers . | . . . . . . Garrison Access . | . . . . . . Total Hacks 2 | . . . 2 . . Successful 2 | . . . 2 . . Failed . | . . . . . . Catastrophic . | . . . . . . Database Lockouts . | . . . . . . Manual 2 | . . . 2 . . Terminals . | . . . . . . Fabricators . | . . . . . . Repair Stations . | . . . . . . Recycling Units . | . . . . . . Scanalyzers . | . . . . . . Garrison Access . | . . . . . . Terminal Hacks 2 | . . . 2 . . Record 2 | . . . 2 . . Fabricator Hacks . | . . . . . . Repair Station Hacks . | . . . . . . Recycling Unit Hacks . | . . . . . . Scanalyzer . | . . . . . . Garrison Access Hacks . | . . . . . . Unauthorized Hacks . | . . . . . . Terminals . | . . . . . . Fabricators . | . . . . . . Repair Stations . | . . . . . . Recycling Units . | . . . . . . Scanalyzers . | . . . . . . Garrison Access . | . . . . . . Data Cores Recovered . | . . . . . . Used . | . . . . . . Hacking Detections . | . . . . . . Full Trace Events . | . . . . . . Feedback Events . | . . . . . . Feedback Blocked . | . . . . . . Robot Schematics Acquired . | . . . . . . Robots Built . | . . . . . . Authchips . | . . . . . . Time . | . . . . . . Total Robot Build Rating . | . . . . . . Part Schematics Acquired . | . . . . . . Parts Built . | . . . . . . Authchips . | . . . . . . Time . | . . . . . . Total Part Build Rating . | . . . . . . Parts Repaired . | . . . . . . Time . | . . . . . . Parts Recycled . | . . . . . . Recycled Matter . | . . . . . . Retrieved Matter . | . . . . . . Retrieved Components . | . . . . . . Parts Scanalyzed . | . . . . . . Part Schematics Acquired . | . . . . . . Parts Damaged . | . . . . . . Bothacking | -11 -10 -10 -10 -9 -8 ------------ Run | Yrd Mat Min Exi Min Mat Used RIF Installer . | . . . . . . Robots Hacked . | . . . . . . Non-combat . | . . . . . . Combat . | . . . . . . Robot Hacks Applied . | . . . . . . Relay Couplers Released . | . . . . . . Fabnet Peak Effective % . | . . . . . . Robots Rewired . | . . . . . . Allies Hacked . | . . . . . . Hacks Repelled . | . . . . . . Allies | -11 -10 -10 -10 -9 -8 -------- Run | Yrd Mat Min Exi Min Mat Total Allies 2 | . . . . . 2 Largest Group 1 | . . . . . 1 Highest-Rated Group 16 | . . . . . 16 Highest-Rated Ally 16 | . . . . . 16 Total Orders . | . . . . . . Ally Attacks 18 | . . . . . 18 Total Damage 321 | . . . . . 321 Kills 3 | . . . . . 3 Allies Corrupted . | . . . . . . Allies Melted . | . . . . . . Field Lobotomies 2 | . . . . . 2 Intel | -11 -10 -10 -10 -9 -8 ------- Run | Yrd Mat Min Exi Min Mat Robot Analysis Total . | . . . . . . Derelict Logs Recovered 1 | . . 1 . . . Drone Launches . | . . . . . . Drone Recoveries . | . . . . . . Exploration | -11 -10 -10 -10 -9 -8 ------------- Run | Yrd Mat Min Exi Min Mat Turns Passed 2796 | 148 978 700 521 43 406 Spaces Moved 1771 | 85 574 429 427 34 222 Core 27 | 2 . . . . 25 Treads 1041 | 83 574 384 . . . Legs 703 | . . 45 427 34 197 Wheels . | . . . . . . Hover . | . . . . . . Flight . | . . . . . . Fastest Speed 50 | 50 160 120 120 120 50 Average Speed 142 | 157 160 155 120 120 112 Slowest Speed 160 | 160 160 160 120 120 120 Overloaded Moves . | . . . . . . Propulsion Burnouts . | . . . . . . Robots Hopped . | . . . . . . Cave-ins Triggered . | . . . . . . Exploration Rate (%) 45 | 5 75 69 88 11 25 Regions Visited 5 Branch Regions 3 Pre-discovered Areas 2 | . . 2 . . . Known Exits Taken . | . . . . . . Unknown Exits Taken 5 | 1 1 1 1 1 . Scrap Searched 3 | . . 2 . 1 . Spaces Dug . | . . . . . . Terrain Destroyed . | . . . . . . Melee . | . . . . . . Projectile . | . . . . . . AOE . | . . . . . . Terrain Rammed . | . . . . . . Walls Destroyed . | . . . . . . Machines Disabled . | . . . . . . Actions | -11 -10 -10 -10 -9 -8 --------- Run | Yrd Mat Min Exi Min Mat Total 1952 | 96 609 450 438 34 325 Wait 43 | . . . . . 43 Move 1766 | 84 573 428 426 33 222 Hop . | . . . . . . Pick Up 18 | 6 6 3 1 . 2 Fast Attach 24 | 6 5 1 2 . 10 Attach 5 | . . 2 1 . 2 Detach 1 | . . . 1 . . Swap 4 | . 2 2 . . . Drop 23 | . 10 5 7 . 1 Fire 20 | . 13 3 . 1 3 Melee 45 | . . 6 . . 39 Ram 3 | . . . . . 3 Kick . | . . . . . . Crush . | . . . . . . Escape Stasis . | . . . . . . Rewire . | . . . . . . Trap . | . . . . . . Miscellaneous . | . . . . . . Route ------- -11/Scrapyard -10/Materials (discovered 3 exits: [*Mat x2] / [*Min]) -10/Mines -10/Exiles -9/Mines -8/Materials History --------- Turn | Location | Event 21 | -11/Scrapyard | Discovered new exit (range 14) 149 | -11/Scrapyard | Entered Materials 333 | -10/Materials | Build established: Mutant 348 | -10/Materials | Discovered new exit (range 11) 731 | -10/Materials | Discovered new exit (range 7) 1012 | -10/Materials | Discovered new exit (range 7) 1127 | -10/Materials | Entered Mines 1138 | -10/Mines | Met a Derelict bent on vengeance 1151 | -10/Mines | Found a hidden stash of uninstalled traps 1231 | -10/Mines | Joined a pair of Derelicts in attacking an 0b10 outpost 1316 | -10/Mines | Assembled infested the area 1453 | -10/Mines | Learned location of Storage (-7) 1587 | -10/Mines | A weapon hastily lodged in a ceiling crevice suddenly fell to the ground 1753 | -10/Mines | Core integrity fell below 50% 1767 | -10/Mines | Core integrity fell below 20% 1792 | -10/Mines | Lost 3 parts (1p1n1w) 1818 | -10/Mines | Deemed a non-threat by the Exiles lab entrance 1819 | -10/Mines | Discovered new exit (range 5) 1827 | -10/Mines | Entered Exiles 1868 | -10/Exiles | Met 8R-AWN 1887 | -10/Exiles | Met EX-HEX 1933 | -10/Exiles | Met EX-BIN 1950 | -10/Exiles | Aligned with FarCom system 1951 | -10/Exiles | Given EX-Vault access code 1992 | -10/Exiles | Opened EX-Vault 1998 | -10/Exiles | Found Prototype Device 1998 | -10/Exiles | Identified Skeleton Box 2015 | -10/Exiles | Found Prototype Device 2020 | -10/Exiles | Found Prototype Special Weapon 2020 | -10/Exiles | Identified Field Lobotomy Kit 2051 | -10/Exiles | Warned to stay clear of 0b10 Research branches 2090 | -10/Exiles | Met EX-DEC 2131 | -10/Exiles | Visited The Gauntlet 2312 | -10/Exiles | Discovered new exit (range 14) 2348 | -10/Exiles | Left Exiles lab with Field Lobotomy Kit 2348 | -10/Exiles | Entered Mines 2374 | -9/Mines | Discovered new exit (range 8) 2391 | -9/Mines | Entered Materials 2391 | -8/Materials | Evolved 4 slots: Propulsion x2, Utility x2 2498 | -8/Materials | Assimilated G-47 Trooper with FLK Orb 2566 | -8/Materials | Assimilated Y-45 Defender with FLK Orb 2611 | -8/Materials | Lost 4 parts (1p1n2u) 2774 | -8/Materials | Core integrity fell below 50% 2783 | -8/Materials | Core integrity fell below 20% 2797 | -8/Materials | Destroyed by exploding Nuclear Reactor Last Messages --------------- R-06 Scavenger collects Wheel. K-01 Serf collects debris. R-06 Scavenger collects Sml. Matter Pod. K-01 Serf collects debris. Critical hit (Burn: +37). Destroyed Imp. Heat Sink. G-47 Trooper system corrupted by crushing effect. K-01 Serf collects debris. Great Maul destroyed. System corrupted by crushing effect (+3). Slammed into G-47 Trooper. G-47 Trooper IFF system glitched. Slammed into G-47 Trooper. Slammed into A-02 Transporter. Destabilizing: Core damaged (-22). G-47 Trooper misfires. Nuclear Reactor explodes. S-10 Pest destroyed. Nuclear Reactor explodes. Map ----- +----------------------------------------------------+ | ?????????????????????????????????????? | | ?????????????????????????????????????? | | ?????????????????????????????????????? | | ?????????????????????????????????????? | | ?????????????????????????????????????? | | ?????????????????????????????????????? | | ?????????????????????????????????????? | | ?????????????????????????????????????? | | ?????????????????????????????????????? | | ?????????????????????????????????????? | | ?????????????????????????????????????? | | ?????????????????????????????????????? | | ???????????????????????????########### | | ???????????????????????????# ! # | | ?????????????? ############ ^ # | | ????????????? g #* =!! # | | ????????????? #%=[=!!= # | | ?????????????! +[=!!!!% %/ | | ????????????? # ==% # | | ????????????? #=** # | | ????????????########### #%%= # | | ????????????# """" # #/######### | | ????????????# ""S"" # *#???????? | | ????????????# "" "" # %#???##### | | ??????Y?????+ # g #???# | | ????????????#@ # #???# """ | | ????????????# # #???# """ | | ????????????# # g g #???# """ | | ????????????# = # #???# | | ???????????## ###b #???# """ | | ???????# #???# """ | | ???????+ #???# """ | | ???????# a""" a ####???# | | ???????# T" ######??????# "" | | ???????# """ u#???????????? Y | | ???????+ #????????#???? "" | | ???????### #??????????????? | | ?????????# #???????????##### | | ?????????? """" #???????????# | | ?????????? """" #???????????# """ | | ????????????g???"" #???????????# """ | | ???????s?g??????? +???????????# """ | | ????????????g???? #???????????# | | ????????????????? ????????????#" | | ????????????????? ????????????#" | | ?????????????????? ????????????#" | | ?????????????????????????????????#T | | ?????????????????????????????????#" | | ?????????????????????????????????#" | | ?????????????????????????????????#" | +----------------------------------------------------+ Best States ------------- Heat Dissipation 55 Energy Generation 14 Energy Capacity 265 Matter Stores 300 Matter Capacity 300 Sight Range 16 Robot Scan Range 14 Terrain Scan Density 10 Armor Coverage 150 Evasion (%) 55 Targeting Accuracy 6 Recoil Reduction 2 Item Schematics ----------------- None Robot Schematics ------------------ None Fabricated ------------ Nothing Alien Tech Used ----------------- None Achievements -------------- None Challenges ------------ None Game ------ Seed DrainedRecoilNanosword Manual? 0 Play Time 00:20:06 Cumulative 10.8 hours Start 2024.11.03 @ 00:26:33 End 2024.11.03 @ 00:45:31 Sessions 1 Manual Loads 0 Difficulty Rogue Special Mode None Game No. 20 Rogue 20 Adventurer 0 Explorer 0 Win Type - Total 0 Types 0/0/0/0/0/0/0/0/0 Lore% 12 Gallery% 16 Achievement% 14 Wizard Run 0 Options --------- Layout 1 ASCII 0 Keyboard 0 Movement Arrows Keybinds 0 Fullscreen 1 Font 32/SmallcapsGlow Map View 50x35 Zoom Use 0% Tactical HUD 0 Map Filters NONE Filters NONE Steam 1 RUN: 66f16c47-c104-4e13-910b-95248808366a